bitfinex-derivatives/quotes_BTCF0:USTF0_20250805
["timestamp","ask_amount","ask_price","bid_price","bid_amount"]
[1754355230511,2.35666601,114970.0,114960.0,0.28111838]
[1754355230714,2.35666601,114970.0,114960.0,0.30532838]
[1754355231416,2.35666601,114970.0,114960.0,0.29098838]
[1754355231613,2.35666601,114970.0,114960.0,0.28111838]
[1754355231813,2.35666601,114970.0,114960.0,0.22371838]
[1754355232012,2.35666601,114970.0,114960.0,0.18638838]
[1754355232315,2.35666601,114970.0,114960.0,0.01241758]
[1754355232812,2.35666601,114970.0,114960.0,0.18638848]
[1754355235514,2.35666601,114970.0,114960.0,0.01241758]
[1754355238115,1.76146601,114970.0,114960.0,0.01241758]
[1754355238316,2.35646601,114970.0,114960.0,0.01241758]
[1754355238721,2.35646601,114970.0,114960.0,0.18638818]
[1754355238921,2.35646601,114970.0,114960.0,0.01241758]
[1754355239218,2.35646601,114970.0,114960.0,0.18638828]
[1754355239421,2.35646601,114970.0,114960.0,0.01241758]
[1754355241019,2.84172811,114970.0,114960.0,0.01241758]
[1754355241223,0.2922006,114960.0,114950.0,0.06903074]
[1754355241422,0.2922157,114950.0,114940.0,0.3992184]
[1754355241722,1.7331178,114950.0,114940.0,0.4128084]
[1754355241921,1.7331178,114950.0,114940.0,0.4218584]
[1754355242121,1.2478557,114950.0,114940.0,0.4218584]
[1754355242615,1.7331178,114950.0,114940.0,0.4218584]
[1754355245224,1.85286581,114950.0,114940.0,0.4218584]
[1754355245623,1.85286581,114950.0,114940.0,0.49144827]
[1754355247223,1.36744371,114950.0,114940.0,0.49144827]
[1754355247424,1.85270581,114950.0,114940.0,0.49144827]
[1754355249222,1.30976371,114950.0,114940.0,0.47785827]
[1754355249429,1.36682371,114950.0,114940.0,0.49144827]
[1754355249617,1.13577801,114950.0,114940.0,0.49144827]
[1754355249816,1.36682371,114950.0,114940.0,0.49144827]
[1754355250226,1.19283801,114950.0,114940.0,0.49144827]
[1754355250729,1.36682371,114950.0,114940.0,0.49144827]
[1754355251227,1.85208581,114950.0,114940.0,0.49144827]
[1754355251423,1.36682371,114950.0,114940.0,0.49144827]
[1754355251624,1.85208581,114950.0,114940.0,0.49144827]
[1754355254731,0.52691801,114950.0,114940.0,0.97671037]
[1754355254927,0.48054801,114950.0,114940.0,0.97671037]
[1754355255126,0.48054801,114950.0,114940.0,1.08626347]
[1754355256030,0.48054801,114950.0,114940.0,0.60100137]
[1754355256230,0.48959801,114950.0,114940.0,1.08626347]
[1754355256818,0.52077801,114950.0,114940.0,1.08626347]
[1754355257227,0.50596801,114950.0,114940.0,1.08626347]
[1754355257430,0.48959801,114950.0,114940.0,1.08626347]
[1754355257724,0.48959801,114950.0,114940.0,1.26026347]
[1754355258238,0.48054801,114950.0,114940.0,1.26026347]
[1754355259031,0.11974801,114950.0,114940.0,1.26026347]
[1754355259332,0.48959801,114950.0,114940.0,0.77500137]
[1754355259528,0.77327391,114950.0,114940.0,0.77500137]
[1754355259728,0.77327391,114950.0,114940.0,1.36968137]
[1754355260335,0.59928801,114950.0,114940.0,1.36968137]
[1754355260525,0.59928801,114950.0,114940.0,1.85494347]
[1754355260725,0.59928801,114950.0,114940.0,1.08626347]
[1754355260927,0.59928801,114950.0,114940.0,1.68126347]
[1754355261936,0.77327381,114950.0,114940.0,1.68126347]
[1754355262330,0.77327381,114950.0,114940.0,1.19600137]
[1754355264735,0.77327381,114950.0,114940.0,0.60100137]
[1754355265032,0.77327381,114950.0,114940.0,1.19588137]
[1754355265224,0.77327381,114950.0,114940.0,0.60100137]
[1754355265428,1.25853591,114950.0,114940.0,0.52096137]
[1754355265627,1.25853591,114950.0,114940.0,1.17326137]
[1754355266034,1.25853591,114950.0,114940.0,1.06370827]
[1754355266035,0.77327381,114950.0,114940.0,1.06370827]
[1754355266335,1.25853591,114950.0,114940.0,1.06370827]
[1754355266525,1.25853591,114950.0,114940.0,1.07729827]
[1754355266726,1.25853591,114950.0,114940.0,0.49162827]
[1754355266922,0.77327381,114950.0,114940.0,1.08630827]
[1754355267126,1.25853591,114950.0,114940.0,1.08630827]
[1754355268230,1.25853591,114950.0,114940.0,0.41140827]
[1754355268436,1.25853591,114950.0,114940.0,1.06366827]
[1754355268729,1.85321591,114950.0,114940.0,1.06366827]
[1754355269534,1.19396801,114950.0,114940.0,1.07725827]
[1754355269732,0.59928801,114950.0,114940.0,1.56252037]
[1754355270741,0.59928801,114950.0,114940.0,1.07725827]
[1754355271032,0.77327371,114950.0,114940.0,1.08630827]
[1754355271536,0.59869801,114950.0,114940.0,1.08630827]
[1754355272237,0.48959801,114950.0,114940.0,1.57157037]
[1754355274340,0.48959801,114950.0,114940.0,1.08630827]
[1754355274537,0.48959801,114950.0,114940.0,1.57157037]
[1754355274930,0.50494801,114950.0,114940.0,1.57157037]
[1754355275132,0.51963801,114950.0,114940.0,1.57157037]
[1754355277843,0.50494801,114950.0,114940.0,1.57157037]
[1754355278541,0.50494801,114950.0,114940.0,1.68112347]
[1754355279834,0.51963801,114950.0,114940.0,1.68112347]
[1754355280341,0.69362381,114950.0,114940.0,1.68112347]
[1754355280938,0.71645381,114950.0,114940.0,1.68112347]
[1754355281344,0.74914381,114950.0,114940.0,1.68112347]
[1754355281539,0.77304381,114950.0,114940.0,1.68112347]
[1754355282740,0.41224381,114950.0,114940.0,1.68112347]
[1754355283344,0.77304381,114950.0,114940.0,1.68112347]
[1754355284943,0.71645381,114950.0,114940.0,1.68112347]
[1754355286148,0.77304381,114950.0,114940.0,1.57157037]
[1754355287650,0.77304381,114950.0,114940.0,0.97689037]
[1754355287841,0.41224381,114950.0,114940.0,1.57153037]
[1754355288349,0.77304381,114950.0,114940.0,1.57153037]
[1754355291148,0.77304381,114950.0,114940.0,1.08626827]
[1754355291351,0.77304381,114950.0,114940.0,1.57153037]
[1754355292647,0.41224381,114950.0,114940.0,1.57153037]
[1754355292852,0.77304381,114950.0,114940.0,1.57153037]
[1754355294260,0.41224381,114950.0,114940.0,1.57153037]
[1754355294550,0.77304381,114950.0,114940.0,1.57153037]
[1754355294752,1.25890002,114950.0,114940.0,2.05798069]
[1754355295455,0.77304381,114950.0,114940.0,2.05798069]
[1754355295754,0.89810002,114950.0,114940.0,2.05798069]
[1754355296854,0.87420002,114950.0,114940.0,1.46334069]
[1754355297049,0.87420002,114950.0,114940.0,2.05798069]
[1754355297351,1.25890002,114950.0,114940.0,2.05798069]
[1754355298256,1.25890002,114950.0,114940.0,1.46334069]
[1754355298554,1.25890002,114950.0,114940.0,2.05798069]
[1754355298754,0.84151002,114950.0,114940.0,2.05798069]
[1754355299851,0.84151002,114950.0,114940.0,1.46334069]
[1754355300052,0.84151002,114950.0,114940.0,2.05798069]
[1754355300253,0.82682002,114950.0,114940.0,2.05798069]
[1754355300847,0.82682002,114950.0,114940.0,2.06294069]
[1754355303354,0.87392002,114950.0,114940.0,2.06294069]
[1754355303752,0.89800002,114950.0,114940.0,2.06294069]
[1754355303943,1.25880002,114950.0,114940.0,2.06294069]
[1754355304846,0.89800002,114950.0,114940.0,2.06294069]
[1754355305248,0.14414801,114950.0,114940.0,2.06294069]
[1754355305552,0.30278281,114950.0,114940.0,1.09122827]
[1754355305752,1.25798902,114950.0,114940.0,1.57708448]
[1754355306347,1.25798902,114950.0,114940.0,0.97367827]
[1754355306949,1.25798902,114950.0,114940.0,1.49891448]
[1754355307150,1.25798902,114950.0,114940.0,1.57190448]
[1754355309556,1.25798902,114950.0,114940.0,1.09519827]
[1754355309948,1.25798902,114950.0,114940.0,0.48600827]
[1754355310148,1.25798902,114950.0,114940.0,1.01301827]
[1754355310653,1.25798902,114950.0,114940.0,0.33557877]
[1754355310852,1.25798902,114950.0,114940.0,0.88663927]
[1754355311558,1.99374523,114950.0,114940.0,0.88663927]
[1754355311760,1.50788902,114950.0,114940.0,0.88663927]
[1754355311960,2.10244902,114950.0,114940.0,0.29207927]
[1754355312161,2.10244902,114950.0,114940.0,0.88663927]
[1754355312662,2.10244902,114950.0,114940.0,0.29207927]
[1754355312858,2.58830523,114950.0,114940.0,0.29207927]
[1754355313163,2.10244902,114950.0,114940.0,0.29207927]
[1754355315762,2.58830523,114950.0,114940.0,0.24858957]
[1754355315962,2.10244902,114950.0,114940.0,0.24858957]
[1754355316867,2.60244902,114950.0,114940.0,0.24858957]
[1754355318767,2.60244902,114950.0,114940.0,0.07458987]
[1754355319268,3.08830523,114950.0,114940.0,0.07458987]
[1754355320266,3.09695529,114950.0,114940.0,0.07458987]
[1754355325558,2.50239529,114950.0,114940.0,0.07458987]
[1754355325761,3.09695529,114950.0,114940.0,0.07458987]
[1754355327767,3.5828115,114950.0,114940.0,0.07458987]
[1754355327966,0.2732993,114940.0,114930.0,0.1095531]
[1754355328174,1.60581172,114940.0,114930.0,0.02443]
[1754355328466,1.60581172,114940.0,114930.0,0.0584]
[1754355328672,1.60581172,114940.0,114930.0,0.02443]
[1754355328872,1.60581172,114940.0,114930.0,0.1984444]
[1754355329175,1.60581172,114940.0,114930.0,0.001]
[1754355329965,1.60581172,114940.0,114930.0,0.1750144]
[1754355330271,1.60581172,114940.0,114930.0,0.07054564]
[1754355330775,1.60581172,114940.0,114930.0,0.24456014]
[1754355330972,0.6340993,114940.0,114930.0,0.24456014]
[1754355331273,1.60581172,114940.0,114930.0,0.26899014]
[1754355331573,2.10581172,114940.0,114930.0,0.26899014]
[1754355332668,3.30593594,114940.0,114930.0,0.09697564]
[1754355332865,2.82007973,114940.0,114930.0,0.09697564]
[1754355333366,2.82007973,114940.0,114930.0,0.07254564]
[1754355333574,3.30593594,114940.0,114930.0,0.07254564]
[1754355334067,3.30593594,114940.0,114930.0,0.003]
[1754355334777,3.30593594,114940.0,114930.0,0.1770144]
[1754355336165,3.30593594,114940.0,114930.0,0.003]
[1754355336372,2.82007973,114940.0,114930.0,0.1770144]
[1754355337270,2.82011973,114940.0,114930.0,0.1770144]
[1754355337575,2.20355973,114940.0,114930.0,0.2007044]
[1754355337773,2.82011973,114940.0,114930.0,0.2965944]
[1754355337976,1.84840731,114940.0,114930.0,0.2965944]
[1754355338178,1.82640731,114940.0,114930.0,0.78245061]
[1754355338678,1.65240801,114940.0,114930.0,0.78245061]
[1754355338877,2.13826422,114940.0,114930.0,0.78245061]
[1754355339072,0.99038801,114940.0,114930.0,0.2965944]
[1754355339279,0.98054801,114940.0,114930.0,0.78245061]
[1754355339774,0.48054801,114940.0,114930.0,0.78245061]
[1754355340677,0.48054801,114940.0,114930.0,0.78247667]
[1754355341377,0.65454731,114940.0,114930.0,0.78247667]
[1754355341778,1.21669958,114940.0,114930.0,0.2007044]
[1754355341978,1.23869958,114940.0,114930.0,0.1770144]
[1754355342679,1.23869958,114940.0,114930.0,0.2007044]
[1754355343275,1.23869958,114940.0,114930.0,0.1770144]
[1754355343979,1.21669958,114940.0,114930.0,0.2481344]
[1754355344281,1.23869958,114940.0,114930.0,0.2965944]
[1754355346285,0.73081731,114940.0,114930.0,0.2965944]
[1754355347173,0.75281731,114940.0,114930.0,0.2965944]
[1754355347576,0.73081731,114940.0,114930.0,0.2965944]
[1754355348874,0.75281731,114940.0,114930.0,0.2965944]
[1754355352179,0.55681801,114940.0,114930.0,0.78247667]
[1754355353282,0.73081751,114940.0,114930.0,0.78247667]
[1754355353889,0.55681801,114940.0,114930.0,0.78247667]
[1754355354382,0.73081751,114940.0,114930.0,0.8910744]
[1754355355489,0.98071751,114940.0,114930.0,0.8910744]
[1754355355892,1.00271751,114940.0,114930.0,0.8910744]
[1754355356192,0.82871801,114940.0,114930.0,0.8910744]
[1754355356393,0.80671801,114940.0,114930.0,0.8910744]
[1754355357894,0.98071751,114940.0,114930.0,0.8910744]
[1754355358089,0.73044801,114940.0,114930.0,0.8910744]
[1754355358295,0.73985801,114940.0,114930.0,0.8910744]
[1754355358496,0.75382801,114940.0,114930.0,0.8910744]
[1754355358689,0.78558801,114940.0,114930.0,0.8910744]
[1754355359697,0.78558801,114940.0,114930.0,0.78247667]
[1754355359998,0.78558801,114940.0,114930.0,1.37691667]
[1754355360186,0.73044801,114940.0,114930.0,1.37691667]
[1754355360990,0.73044801,114940.0,114930.0,1.37591667]
[1754355361390,0.36964801,114940.0,114930.0,1.73671667]
[1754355361596,0.36964801,114940.0,114930.0,2.22259894]
[1754355361803,0.36964801,114940.0,114930.0,2.22059894]
[1754355362004,0.36964801,114940.0,114930.0,2.33015204]
[1754355362909,0.36964801,114940.0,114930.0,2.22059894]
[1754355365112,0.36964801,114940.0,114930.0,1.73471667]
[1754355365706,0.36964801,114940.0,114930.0,1.84426977]
[1754355366508,0.26824051,114940.0,114930.0,2.33015204]
[1754355366710,0.11520409,114940.0,114930.0,2.33015204]
[1754355366910,9e-08,114940.0,114930.0,2.33015204]
[1754355368114,9e-08,114940.0,114930.0,2.39460694]
[1754355368716,0.1197481,114940.0,114930.0,2.39460694]
[1754355369918,0.1197481,114940.0,114930.0,2.41190329]
[1754355371014,0.1197481,114940.0,114930.0,1.44013875]
[1754355371216,0.1197481,114940.0,114930.0,2.41190329]
[1754355372116,0.1197481,114940.0,114930.0,2.521354]
[1754355373008,0.0629925,114940.0,114930.0,2.521354]
[1754355373513,1.08613227,114970.0,114960.0,0.1971597]
[1754355373514,0.38294,114970.0,114960.0,0.1971597]
[1754355373723,0.43845,114970.0,114960.0,1.37310197]
[1754355374912,0.37008,114970.0,114960.0,1.37310197]
[1754355376314,0.38634,114970.0,114960.0,1.37310197]
[1754355376515,0.53605801,114970.0,114960.0,1.37310197]
[1754355376808,0.55819801,114970.0,114960.0,1.37310197]
[1754355379430,0.54231801,114970.0,114960.0,1.37310197]
[1754355379930,0.55819801,114970.0,114960.0,1.37310197]
[1754355380131,0.19739801,114970.0,114960.0,1.37310197]
[1754355380430,0.11974801,114970.0,114960.0,1.37310197]
[1754355381120,0.12902801,114970.0,114960.0,1.37310197]
[1754355381321,0.15899801,114970.0,114960.0,1.37310197]
[1754355381825,0.17525801,114970.0,114960.0,0.8872197]
[1754355382021,0.37135251,114970.0,114960.0,1.37310197]
[1754355382425,0.39335251,114970.0,114960.0,0.2787997]
[1754355382629,0.39335251,114970.0,114960.0,0.8730397]
[1754355382830,0.39335251,114970.0,114960.0,0.8871397]
[1754355384428,0.21939801,114970.0,114960.0,0.8871397]
[1754355385531,0.21939801,114970.0,114960.0,0.8870997]
[1754355386733,0.39335251,114970.0,114960.0,0.8870997]
[1754355386932,0.21939801,114970.0,114960.0,0.8870997]
[1754355389332,0.21939801,114970.0,114960.0,0.8729997]
[1754355389636,0.21939801,114970.0,114960.0,0.8870997]
[1754355389831,1.24003508,114970.0,114960.0,0.8870597]
[1754355390234,1.24003508,114970.0,114960.0,0.1739697]
[1754355390428,1.24003508,114970.0,114960.0,0.7681297]
[1754355391229,1.24003508,114970.0,114960.0,0.1739697]
[1754355391436,1.98993508,114970.0,114960.0,0.1739697]
[1754355392836,1.50405281,114970.0,114960.0,0.1739697]
[1754355393025,1.98993508,114970.0,114960.0,0.1739697]
[1754355394932,0.2731002,114960.0,114950.0,0.3044546]
[1754355395132,1.23953048,114960.0,114950.0,0.3277946]
[1754355395347,1.83369048,114960.0,114950.0,0.3670846]
[1754355395637,1.83369048,114960.0,114950.0,0.4112546]
[1754355396537,2.33369048,114960.0,114950.0,0.4112546]
[1754355400843,2.33369048,114960.0,114950.0,0.4260846]
[1754355403640,1.84780821,114960.0,114950.0,0.4112546]
[1754355403834,1.84780821,114960.0,114950.0,0.4260846]
[1754355403835,1.82580821,114960.0,114950.0,0.4260846]
[1754355404041,2.33369048,114960.0,114950.0,0.4112546]
[1754355404342,2.33369048,114960.0,114950.0,0.3769846]
[1754355404538,2.33369048,114960.0,114950.0,0.2609597]
[1754355404736,2.33369048,114960.0,114950.0,0.3185697]
[1754355405044,2.33369048,114960.0,114950.0,0.2842997]
[1754355405638,2.33369048,114960.0,114950.0,0.2609597]
[1754355405944,2.58359048,114960.0,114950.0,0.2609597]
[1754355407839,2.58359048,114960.0,114950.0,0.1739732]
[1754355408745,0.2731152,114950.0,114940.0,0.327827]
[1754355408940,1.11979747,114950.0,114940.0,0.367117]
[1754355409137,1.11979747,114950.0,114940.0,0.411287]
[1754355409345,1.11979747,114950.0,114940.0,0.367117]
[1754355409644,1.11979747,114950.0,114940.0,0.377017]
[1754355409944,0.6339152,114950.0,114940.0,0.426117]
[1754355410337,0.75366321,114950.0,114940.0,0.426117]
[1754355413349,1.23954548,114950.0,114940.0,0.426117]
[1754355415751,0.75366321,114950.0,114940.0,0.411287]
[1754355416049,1.23954548,114950.0,114940.0,0.411287]
[1754355416349,1.23954548,114950.0,114940.0,0.426117]
[1754355417150,1.23954548,114950.0,114940.0,0.327827]
[1754355417349,1.23954548,114950.0,114940.0,0.2843272]
[1754355417737,1.23954548,114950.0,114940.0,0.2174874]
[1754355418449,1.73954548,114950.0,114940.0,0.2174874]
[1754355419850,1.73954548,114950.0,114940.0,0.1739876]
[1754355420149,1.98944548,114950.0,114940.0,0.1739876]
[1754355420346,0.2213204,114940.0,114930.0,0.3678067]
[1754355420647,1.71397267,114940.0,114930.0,0.3826367]
[1754355421650,2.21397267,114940.0,114930.0,0.3826367]
[1754355422549,1.7280904,114940.0,114930.0,0.3826367]
[1754355422750,2.21397267,114940.0,114930.0,0.3826367]
[1754355425351,2.33372068,114940.0,114930.0,0.3826367]
[1754355426446,2.33372068,114940.0,114930.0,0.3678067]
[1754355428154,2.33372068,114940.0,114930.0,0.3236367]
[1754355429353,2.33372068,114940.0,114930.0,0.3336167]
[1754355429554,2.33372068,114940.0,114930.0,0.3670767]
[1754355430653,2.33372068,114940.0,114930.0,0.3336167]
[1754355432253,2.33372068,114940.0,114930.0,0.3670767]
[1754355434848,2.33372068,114940.0,114930.0,0.3820467]
[1754355435856,2.33372068,114940.0,114930.0,0.3670767]
[1754355436656,2.81991803,114940.0,114930.0,0.3670767]
[1754355437059,2.33387822,114940.0,114930.0,0.86808651]
[1754355437650,2.81991803,114940.0,114930.0,0.86808651]
[1754355437851,2.33387822,114940.0,114930.0,0.86808651]
[1754355438358,2.81991803,114940.0,114930.0,0.86808651]
[1754355439759,1.84783841,114940.0,114930.0,0.86808651]
[1754355439950,1.84783841,114940.0,114930.0,0.3820467]
[1754355439951,0.98975801,114940.0,114930.0,0.3820467]
[1754355440146,0.98975801,114940.0,114930.0,0.86808651]
[1754355440350,0.51955801,114940.0,114930.0,0.86808651]
[1754355440558,0.55725801,114940.0,114930.0,0.86808651]
[1754355440753,0.73125841,114940.0,114930.0,0.86796831]
[1754355442361,0.73125841,114940.0,114930.0,0.97741902]
[1754355442864,0.37045841,114940.0,114930.0,0.97741902]
[1754355443163,0.19645801,114940.0,114930.0,0.97741902]
[1754355444056,0.37045841,114940.0,114930.0,1.24221902]
[1754355446669,0.37045841,114940.0,114930.0,1.13276831]
[1754355447171,0.37045841,114940.0,114930.0,1.24221902]
[1754355447372,0.19645801,114940.0,114930.0,1.24221902]
[1754355447967,0.17403801,114940.0,114930.0,1.13276831]
[1754355448177,0.12895801,114940.0,114930.0,1.13276831]
[1754355448374,0.12895801,114940.0,114930.0,1.24221902]
[1754355449575,0.12895801,114940.0,114930.0,0.75629741]
[1754355449780,0.48975801,114940.0,114930.0,1.24221902]
[1754355449976,0.51955801,114940.0,114930.0,1.24221902]
[1754355450176,0.12895801,114940.0,114930.0,1.24221902]
[1754355450782,0.11974801,114940.0,114930.0,1.24221902]
[1754355451275,0.36964801,114940.0,114930.0,1.24221902]
[1754355452581,0.37923801,114940.0,114930.0,1.24221902]
[1754355452774,0.40916801,114940.0,114930.0,1.24221902]
[1754355454777,0.42522801,114940.0,114930.0,1.13276831]
[1754355455282,0.42522801,114940.0,114930.0,1.24221902]
[1754355456185,0.37923801,114940.0,114930.0,1.24221902]
[1754355456783,0.37923801,114940.0,114930.0,1.13276831]
[1754355457282,0.37923801,114940.0,114930.0,1.24221902]
[1754355457483,0.37923801,114940.0,114930.0,1.13276831]
[1754355459085,0.39328801,114940.0,114930.0,1.13276831]
[1754355459285,0.40916801,114940.0,114930.0,1.13276831]
[1754355459882,0.42522801,114940.0,114930.0,1.13276831]
[1754355460690,0.91116805,114940.0,114930.0,1.13278674]
[1754355460890,0.36964801,114940.0,114930.0,1.13278674]
[1754355461186,0.36964801,114940.0,114930.0,1.24223745]
[1754355461385,0.36964801,114940.0,114930.0,2.68289749]
[1754355461687,0.36964801,114940.0,114930.0,2.21264678]
[1754355461891,0.36964801,114940.0,114930.0,1.94784678]
[1754355462289,0.36964801,114940.0,114930.0,2.30864678]
[1754355465096,0.36964801,114940.0,114930.0,1.94784678]
[1754355467498,0.36964801,114940.0,114930.0,2.30864678]
[1754355467695,0.36964801,114940.0,114930.0,2.57344678]
[1754355468393,0.36964801,114940.0,114930.0,2.21264678]
[1754355469194,0.36964801,114940.0,114930.0,2.57344678]
[1754355470194,0.36964801,114940.0,114930.0,2.21264678]
[1754355470802,0.36964801,114940.0,114930.0,2.68289749]
[1754355472109,0.36964801,114940.0,114930.0,2.32209749]
[1754355472402,0.36964801,114940.0,114930.0,2.68289749]
[1754355472599,0.36964801,114940.0,114930.0,2.57344678]
[1754355475999,0.36964801,114940.0,114930.0,2.68289749]
[1754355478502,0.36964801,114940.0,114930.0,1.71101741]
[1754355478701,0.36964801,114940.0,114930.0,2.68289749]
[1754355478902,0.37878801,114940.0,114930.0,2.32209749]
[1754355479599,0.37878801,114940.0,114930.0,2.21264678]
[1754355479906,1.48864905,114940.0,114930.0,1.72575674]
[1754355480102,0.44590801,114940.0,114930.0,1.72575674]
[1754355482203,0.44590801,114940.0,114930.0,1.83520745]
[1754355483005,0.44590801,114940.0,114930.0,1.72575674]
[1754355483505,0.44590801,114940.0,114930.0,1.83539935]
[1754355483808,0.44590801,114940.0,114930.0,1.72575674]
[1754355485104,0.42477801,114940.0,114930.0,1.72575674]
[1754355485810,0.78557801,114940.0,114930.0,1.72575674]
[1754355486807,0.42477801,114940.0,114930.0,1.72575674]
[1754355488113,0.98112911,114940.0,114930.0,1.72575674]
[1754355488419,0.80712801,114940.0,114930.0,1.83541044]
[1754355489107,0.80712801,114940.0,114930.0,1.72575674]
[1754355489316,0.42477801,114940.0,114930.0,1.72575674]
[1754355489618,0.37878801,114940.0,114930.0,2.21169678]
[1754355490118,0.37878801,114940.0,114930.0,1.72575674]
[1754355491315,0.39297801,114940.0,114930.0,1.72575674]
[1754355491709,0.40891801,114940.0,114930.0,1.72575674]
[1754355491905,0.44634801,114940.0,114930.0,1.72575674]
[1754355492819,0.44634801,114940.0,114930.0,1.83542733]
[1754355493217,0.44634801,114940.0,114930.0,1.83534733]
[1754355494014,0.80714801,114940.0,114930.0,1.83534733]
[1754355495215,0.80714801,114940.0,114930.0,1.34940729]
[1754355495410,0.80714801,114940.0,114930.0,1.83534733]
[1754355496109,0.82914801,114940.0,114930.0,1.83534733]
[1754355496517,0.80714801,114940.0,114930.0,1.83534733]
[1754355499714,0.80714801,114940.0,114930.0,1.72567674]
[1754355500018,0.44634801,114940.0,114930.0,1.72567674]
[1754355500818,0.80714801,114940.0,114930.0,1.72567674]
[1754355502426,1.46708935,114940.0,114930.0,0.6460567]
[1754355502621,1.48908935,114940.0,114930.0,1.72563674]
[1754355503127,1.29308805,114940.0,114930.0,1.72563674]
[1754355504925,1.29308805,114940.0,114930.0,1.2396967]
[1754355505223,1.29308805,114940.0,114930.0,1.72563674]
[1754355507220,1.29308805,114940.0,114930.0,1.13199674]
[1754355507426,1.29308805,114940.0,114930.0,1.72559674]
[1754355508026,1.29308805,114940.0,114930.0,1.83527302]
[1754355508325,1.29308805,114940.0,114930.0,1.13199674]
[1754355508523,1.48908935,114940.0,114930.0,1.8350187]
[1754355508827,1.00314931,114940.0,114930.0,1.8350187]
[1754355509025,1.48908935,114940.0,114930.0,1.8350187]
[1754355509226,1.48908935,114940.0,114930.0,1.5702187]
[1754355509429,1.46708935,114940.0,114930.0,1.5702187]
[1754355510226,1.48908935,114940.0,114930.0,1.5702187]
[1754355515227,1.31508805,114940.0,114930.0,1.5702187]
[1754355515429,1.48908925,114940.0,114930.0,1.5702187]
[1754355515829,1.00314921,114940.0,114930.0,1.5702187]
[1754355516123,1.48908925,114940.0,114930.0,1.08427866]
[1754355516428,1.48908925,114940.0,114930.0,1.5702187]
[1754355519333,1.29308805,114940.0,114930.0,1.5702187]
[1754355519530,0.93228805,114940.0,114930.0,1.5702187]
[1754355519725,0.44634801,114940.0,114930.0,1.5702187]
[1754355520429,0.36964801,114940.0,114930.0,2.05615874]
[1754355521122,0.36964801,114940.0,114930.0,1.8350187]
[1754355521322,0.36964801,114940.0,114930.0,2.32095874]
[1754355522230,0.36964801,114940.0,114930.0,1.72533674]
[1754355523331,0.37910801,114940.0,114930.0,1.72533674]
[1754355524534,0.36964801,114940.0,114930.0,1.72533674]
[1754355524735,0.36964801,114940.0,114930.0,2.21127678]
[1754355528341,0.34628371,114940.0,114930.0,2.69721682]
[1754355528636,0.03394221,114940.0,114930.0,2.68175874]
[1754355528836,1e-08,114940.0,114930.0,2.68175874]
[1754355529635,1.03564844,114970.0,114960.0,0.2355721]
[1754355529636,0.37708,114970.0,114960.0,0.2355721]
[1754355529842,0.37708,114970.0,114960.0,1.83139643]
[1754355529843,0.46599,114970.0,114960.0,1.83139643]
[1754355530441,0.46599,114970.0,114960.0,1.8402403]
[1754355530747,0.48094,114970.0,114960.0,1.8402403]
[1754355531733,0.58573791,114970.0,114960.0,1.8402403]
[1754355533139,0.60068791,114970.0,114960.0,1.8402403]
[1754355533342,0.60068791,114970.0,114960.0,0.86836022]
[1754355533541,0.60068791,114970.0,114960.0,1.8402403]
[1754355534741,0.50482791,114970.0,114960.0,1.8402403]
[1754355536542,0.52110791,114970.0,114960.0,1.8402403]
[1754355536730,0.55430791,114970.0,114960.0,1.8402403]
[1754355536935,0.58573791,114970.0,114960.0,1.8402403]
[1754355537335,0.58573791,114970.0,114960.0,1.2437603]
[1754355537534,0.60068791,114970.0,114960.0,1.8371203]
[1754355539939,0.58573791,114970.0,114960.0,1.8401203]
[1754355540548,0.55253791,114970.0,114960.0,1.8401203]
[1754355542245,0.55253791,114970.0,114960.0,1.2467603]
[1754355542445,0.55253791,114970.0,114960.0,1.8400403]
[1754355544646,0.55253791,114970.0,114960.0,2.1048403]
[1754355544946,0.50482791,114970.0,114960.0,2.1048403]
[1754355546045,0.58765791,114970.0,114960.0,2.1048403]
[1754355546244,0.58765791,114970.0,114960.0,2.1018403]
[1754355548641,0.58765791,114970.0,114960.0,2.0975103]
[1754355548847,0.52118791,114970.0,114960.0,2.0975103]
[1754355549048,0.57798791,114970.0,114960.0,2.1005103]
[1754355549448,0.58765791,114970.0,114960.0,2.1005103]
[1754355550445,0.58765791,114970.0,114960.0,2.0975103]
[1754355550841,0.60184791,114970.0,114960.0,0.53239022]
[1754355551044,1.08778795,114970.0,114960.0,2.1022703]
[1754355551553,0.60184791,114970.0,114960.0,2.1022703]
[1754355551745,1.08778795,114970.0,114960.0,2.1022703]
[1754355552349,1.26174505,114970.0,114960.0,2.1022703]
[1754355555141,1.08778795,114970.0,114960.0,2.1022703]
[1754355555948,1.26174505,114970.0,114960.0,2.1022703]
[1754355556748,0.77580501,114970.0,114960.0,2.1022703]
[1754355556950,1.26174505,114970.0,114960.0,2.1022703]
[1754355557150,1.08778795,114970.0,114960.0,2.1022703]
[1754355558441,0.60184791,114970.0,114960.0,2.1022703]
[1754355558849,0.77580481,114970.0,114960.0,1.13039022]
[1754355559053,1.26174485,114970.0,114960.0,2.1022703]
[1754355559247,0.77580481,114970.0,114960.0,2.1022703]
[1754355559450,1.26174485,114970.0,114960.0,2.1022703]
[1754355560750,1.34264485,114970.0,114960.0,2.1022703]
[1754355561653,0.85670481,114970.0,114960.0,2.1022703]
[1754355561852,0.68274791,114970.0,114960.0,2.1022703]
[1754355562047,0.66855791,114970.0,114960.0,2.1022703]
[1754355562251,0.66855791,114970.0,114960.0,2.1052703]
[1754355562445,0.58608791,114970.0,114960.0,2.1052703]
[1754355562849,0.65924791,114970.0,114960.0,2.1052703]
[1754355563149,0.66891791,114970.0,114960.0,2.1052703]
[1754355563450,0.68310791,114970.0,114960.0,2.1052703]
[1754355563645,0.68310791,114970.0,114960.0,2.1022703]
[1754355564046,1.16904795,114970.0,114960.0,2.1022703]
[1754355564648,0.80824795,114970.0,114960.0,2.1022703]
[1754355564951,1.16904795,114970.0,114960.0,2.1022703]
[1754355565552,0.68310791,114970.0,114960.0,2.1022703]
[1754355567854,0.68310791,114970.0,114960.0,2.1052703]
[1754355568156,0.66891791,114970.0,114960.0,2.1052703]
[1754355570758,0.66891791,114970.0,114960.0,2.1051503]
[1754355574061,0.66891791,114970.0,114960.0,1.13327022]
[1754355574258,0.66891791,114970.0,114960.0,2.1051503]
[1754355574761,0.66891791,114970.0,114960.0,1.13327022]
[1754355574946,0.66891791,114970.0,114960.0,2.1051503]
[1754355575760,0.68315791,114970.0,114960.0,2.1051503]
[1754355576060,0.68315791,114970.0,114960.0,1.13327022]
[1754355576260,0.68315791,114970.0,114960.0,1.13027022]
[1754355576449,0.68315791,114970.0,114960.0,2.1021503]
[1754355577257,1.34305485,114970.0,114960.0,2.1021503]
[1754355577457,1.34305485,114970.0,114960.0,2.21146528]
[1754355578363,0.68315791,114970.0,114960.0,2.21146528]
[1754355580659,0.66891791,114970.0,114960.0,2.21146528]
[1754355581864,0.66891791,114970.0,114960.0,2.21446528]
[1754355582664,0.66891791,114970.0,114960.0,1.62138528]
[1754355582864,0.66891791,114970.0,114960.0,2.21442528]
[1754355583567,0.66891791,114970.0,114960.0,2.21142528]
[1754355585160,0.68315791,114970.0,114960.0,2.21442528]
[1754355585361,0.68315791,114970.0,114960.0,2.1051103]